fUSD/lending_fUSD_20260123
["ID","MTS","AMOUNT","RATE_DAILY","PERIOD"]
[403115024,1769170241176,-5145.6289102,0.0001795,2]
[403115025,1769170241185,-150.0,0.00017972,2]
[403115026,1769170241194,-500.0,0.00017973,2]
[403115027,1769170241203,-500.0,0.00017973,2]
[403115028,1769170241212,-500.0,0.00017973,2]
[403115029,1769170241221,-500.0,0.00017973,2]
[403115030,1769170241231,-150.0,0.00017973,2]
[403115031,1769170241240,-150.0,0.00017973,2]
[403115032,1769170241249,-502.11,0.0001798,2]
[403115033,1769170241258,-211.95522837,0.0001799,2]
[403115034,1769170241267,-211.95522837,0.0001799,2]
[403115035,1769170241276,-2108.4171597,0.00017993,2]
[403115036,1769170241286,-6069.1127031,0.00017993,2]
[403115037,1769170241295,-2108.416078,0.00017993,2]
[403115038,1769170241304,-3138.0,0.00018,2]
[403115039,1769170241313,-6467890.51705217,0.00018,2]
[403115058,1769170245711,-1000.0,0.00017037,2]
[403115059,1769170245721,-567.0,0.0001765,2]
[403115060,1769170245730,-10918.76969558,0.00018,2]
[403115061,1769170245742,-39132.37997658,0.00018,2]
[403115062,1769170245765,-3422.87,0.00018,2]
[403115082,1769170402819,186.89498595,0.00014638,2]
[403115083,1769170406249,178.15838458,0.00014638,2]
[403115086,1769170501262,300.0,0.00014638,2]
[403115087,1769170501471,1069.0,0.00014638,2]
[403115088,1769170502260,150.0,0.00014638,2]
[403115090,1769170614214,307.8432685,0.00014637,2]
[403115091,1769170615707,500.0,0.00014637,2]
[403115092,1769170615749,500.0,0.00014637,2]
[403115093,1769170615795,500.0,0.00014637,2]
[403115094,1769170615839,500.0,0.00014637,2]
[403115095,1769170615880,500.0,0.00014637,2]
[403115096,1769170615928,500.0,0.00014637,2]
[403115097,1769170615986,515.47589006,0.00014637,2]
[403115098,1769170656593,178.15838456,0.00014638,2]
[403115099,1769170669484,500.0,0.00014637,2]
[403115100,1769170669529,500.0,0.00014637,2]
[403115101,1769170669568,500.0,0.00014637,2]
[403115102,1769170669622,500.0,0.00014637,2]
[403115103,1769170669657,515.47589006,0.00014637,2]
[403115104,1769170683264,150.0,0.00014638,2]
[403115107,1769170690698,1449.00319629,0.00014539,2]
[403115108,1769170690719,1050.99680371,0.00014539,2]
[403115109,1769170709075,186.89498595,0.00014638,2]
[403115110,1769170765002,538.96171567,0.00014638,2]
[403115111,1769170779472,830.68368122,0.00014625,2]
[403115112,1769170809965,1334.21,0.00014629,2]
[403115113,1769170810304,1334.21,0.00014629,2]
[403115114,1769170828208,3606.0951,0.00014539,2]
[403115115,1769170831698,500.0,0.00014637,2]
[403115116,1769170831736,190.15759542,0.00014637,2]
[403115117,1769170831777,427.80011803,0.00014637,2]
[403115118,1769170831801,72.19988197,0.00014637,2]
[403115119,1769170832030,500.0,0.00014637,2]
[403115120,1769170832077,500.0,0.00014637,2]
[403115121,1769170832118,500.0,0.00014637,2]
[403115122,1769170832161,457.56797106,0.00014637,2]
[403115123,1769170859998,378.13542222,0.00014637,2]
[403115124,1769170860041,500.0,0.00014637,2]
[403115125,1769170860357,500.0,0.00014637,2]
[403115126,1769170860676,500.0,0.00014637,2]
[403115127,1769170860987,500.0,0.00014637,2]
[403115128,1769170861315,500.0,0.00014637,2]
[403115129,1769170861678,457.56797106,0.00014637,2]
[403115130,1769170862119,150.0,0.00014638,2]
[403115131,1769170868990,181.70880326,0.00014638,2]
[403115132,1769170869057,500.0,0.00014638,2]
[403115133,1769170869141,233.24442211,0.00014638,2]
[403115134,1769170871051,500.0,0.00014638,2]
[403115135,1769170871091,500.0,0.00014638,2]
[403115136,1769170871130,500.0,0.00014638,2]
[403115137,1769170871168,443.90770105,0.00014638,2]
[403115138,1769170871205,500.0,0.00014638,2]
[403115139,1769170871605,500.0,0.00014638,2]
[403115140,1769170871642,500.0,0.00014638,2]
[403115141,1769170871683,125.67782727,0.00014638,2]
[403115142,1769170871707,374.32217273,0.00014638,2]
[403115143,1769170871763,500.0,0.00014638,2]
[403115145,1769170889047,1569.4315,0.00014539,2]
[403115146,1769170892648,847.328,0.00014346,2]
[403115147,1769170892763,178.15838456,0.00014638,2]
[403115148,1769170904682,500.0,0.00014638,2]
[403115149,1769170913684,500.0,0.00014539,2]
[403115157,1769170950351,1000.0,0.00014539,2]
[403115162,1769171013113,500.0,0.00014638,2]
[403115163,1769171013360,500.0,0.00014638,2]
[403115171,1769171048338,500.0,0.00014638,2]
[403115172,1769171053561,337.21220376,0.00014638,2]
[403115173,1769171069331,2693.55773895,0.00014539,2]
[403115174,1769171069355,10000.01,0.00014539,2]
[403115175,1769171069377,10000.01,0.00014539,2]
[403115176,1769171069398,10000.01,0.00014539,2]
[403115177,1769171069420,546.09546105,0.00014539,2]
[403115180,1769171105999,1000.0,0.00014539,2]
[403115182,1769171212079,2637.88237455,0.00015,14]
[403115202,1769171391693,8453.91453895,0.00014539,2]
[403115203,1769171391719,10000.01,0.00014539,2]
[403115204,1769171391742,10000.01,0.00014539,2]
[403115205,1769171391766,10000.01,0.00014539,2]
[403115206,1769171391789,10000.01,0.00014539,2]
[403115207,1769171391812,10000.01,0.00014539,2]
[403115208,1769171391843,10000.01,0.00014539,2]
[403115209,1769171391870,10000.01,0.00014539,2]
[403115210,1769171391894,10000.01,0.00014539,2]
[403115211,1769171391918,10000.01,0.00014539,2]
[403115236,1769171431921,-11554.08237454,0.00014539,2]
[403115237,1769171431953,-123211.25275318,0.00014539,2]
[403115238,1769171431964,-294.64,0.00014539,2]
[403115239,1769171432017,-653991.90903333,0.00014539,2]
[403115240,1769171432026,-270.0,0.00014539,2]
[403115241,1769171432035,-187.94619213,0.00014638,2]
[403115242,1769171432045,-1051.16561974,0.00014638,2]
[403115243,1769171432054,-178.15838456,0.00014638,2]
[403115244,1769171432064,-500.0,0.00014738,2]
[403115245,1769171432073,-500.0,0.00014738,2]
[403115246,1769171432083,-1051.16561968,0.00015,2]
[403115247,1769171432092,-1051.16561968,0.00015363,2]
[403115248,1769171432105,-5259.50405557,0.00015623,2]
[403115249,1769171432115,-1051.16561968,0.00015725,2]
[403115250,1769171432131,-151.0,0.00015924,2]
[403115251,1769171432141,-250.0,0.00015992,2]
[403115252,1769171432150,-195.0,0.00015992,2]
[403115253,1769171432164,-1051.16561968,0.00016088,2]
[403115254,1769171432173,-317.06608488,0.00016101,2]
[403115255,1769171432182,-500.0,0.00016356,2]
[403115256,1769171432191,-500.0,0.00016356,2]
[403115257,1769171432201,-196.07472353,0.00016438,2]
[403115258,1769171432213,-1051.16561968,0.0001645,2]
[403115259,1769171432230,-150.0,0.00016661,2]
[403115260,1769171432240,-200.0,0.00016674,2]
[403115261,1769171432249,-159.38,0.00016773,2]
[403115262,1769171432258,-1051.16561968,0.00016813,2]
[403115263,1769171432268,-527.0,0.00016989,2]
[403115264,1769171432277,-322.6107,0.00017099,2]
[403115265,1769171432286,-854.2589148,0.00017099,2]
[403115266,1769171432296,-151.0,0.00017099,2]
[403115267,1769171432305,-151.0,0.00017099,2]
[403115268,1769171432314,-151.0,0.00017099,2]
[403115269,1769171432323,-151.0,0.00017099,2]
[403115270,1769171432333,-151.0,0.00017099,2]
[403115271,1769171432343,-151.0,0.00017099,2]
[403115272,1769171432353,-151.0,0.00017099,2]
[403115273,1769171432362,-151.0,0.00017099,2]
[403115274,1769171432372,-151.0,0.00017099,2]
[403115275,1769171432382,-151.0,0.00017099,2]
[403115276,1769171432391,-151.0,0.00017099,2]
[403115277,1769171432400,-1051.16561968,0.00017175,2]
[403115278,1769171432410,-527.0,0.00017293,2]
[403115279,1769171432419,-527.0,0.00017295,2]
[403115280,1769171432428,-527.0,0.00017348,2]
[403115281,1769171432437,-846.0,0.0001736,2]
[403115282,1769171432446,-527.0,0.00017382,2]
[403115283,1769171432455,-500.0,0.000175,3]
[403115284,1769171432464,-1051.16561968,0.00017538,2]
[403115285,1769171432473,-296.09945484,0.0001764,2]
[403115286,1769171432483,-500.0,0.0001764,2]
[403115287,1769171432492,-527.0,0.00017655,2]
[403115288,1769171432506,-500.0,0.00017699,2]
[403115289,1769171432516,-150.0,0.00017699,2]
[403115290,1769171432525,-150.0,0.00017699,2]
[403115291,1769171432535,-150.0,0.00017699,2]
[403115292,1769171432544,-500.0,0.00017699,2]
[403115293,1769171432553,-500.0,0.00017699,2]
[403115294,1769171432562,-150.0,0.00017699,2]
[403115295,1769171432575,-500.0,0.00017699,2]
[403115296,1769171432585,-500.0,0.00017699,2]
[403115297,1769171432595,-150.0,0.00017699,2]
[403115298,1769171432605,-500.0,0.00017699,2]
[403115299,1769171432614,-500.0,0.00017699,2]
[403115300,1769171432624,-150.0,0.00017699,2]
[403115301,1769171432634,-150.0,0.00017699,2]
[403115302,1769171432643,-150.0,0.00017699,2]
[403115303,1769171432652,-500.0,0.00017699,2]
[403115304,1769171432672,-500.0,0.00017699,2]
[403115305,1769171432682,-500.0,0.00017699,2]
[403115306,1769171432691,-150.0,0.00017699,2]
[403115307,1769171432700,-150.0,0.00017699,2]
[403115308,1769171432709,-150.0,0.00017699,2]
[403115309,1769171432719,-150.0,0.00017699,2]
[403115310,1769171432728,-150.0,0.00017699,2]
[403115311,1769171432737,-500.0,0.00017699,2]
[403115312,1769171432746,-150.0,0.00017715,2]
[403115313,1769171432756,-150.0,0.00017715,2]
[403115314,1769171432766,-161.95810683,0.00017715,2]
[403115315,1769171432775,-230.04153291,0.00017715,2]
[403115316,1769171432784,-150.0,0.00017715,2]
[403115317,1769171432794,-150.0,0.00017715,2]
[403115318,1769171432804,-150.0,0.00017715,2]
[403115319,1769171432813,-500.0,0.00017754,2]
[403115320,1769171432823,-150.0,0.00017754,2]
[403115321,1769171432832,-500.0,0.00017754,2]
[403115322,1769171432842,-500.0,0.00017754,2]
[403115323,1769171432851,-252.13388248,0.00017754,2]
[403115324,1769171432861,-500.0,0.00017754,2]
[403115325,1769171432870,-500.0,0.00017754,2]
[403115326,1769171432879,-150.0,0.00017754,2]
[403115327,1769171432889,-500.0,0.00017754,2]
[403115328,1769171432898,-500.0,0.00017754,2]
[403115329,1769171432907,-203.44393732,0.00017754,2]
[403115330,1769171432916,-209.43197423,0.00017754,2]
[403115331,1769171432926,-500.0,0.00017754,2]
[403115332,1769171432935,-500.0,0.00017754,2]
[403115333,1769171432944,-500.0,0.00017754,2]
[403115334,1769171432953,-150.0,0.00017754,2]
[403115335,1769171432963,-150.0,0.00017754,2]
[403115336,1769171432972,-150.0,0.00017754,2]
[403115337,1769171432982,-150.0,0.00017754,2]
[403115338,1769171432992,-500.0,0.00017754,2]
[403115339,1769171433001,-527.0,0.00017758,2]
[403115340,1769171433011,-150.0,0.0001777,2]
[403115341,1769171433020,-150.0,0.0001777,2]
[403115342,1769171433030,-150.0,0.0001777,2]
[403115343,1769171433039,-150.0,0.0001777,2]
[403115344,1769171433048,-3090.1,0.00017787,2]
[403115345,1769171433058,-1000.0,0.000178,2]
[403115346,1769171433066,-150.0,0.00017808,2]
[403115347,1769171433075,-150.0,0.00017808,2]
[403115348,1769171433085,-500.0,0.00017809,2]
[403115349,1769171433094,-162.83588015,0.00017809,2]
[403115350,1769171433104,-500.0,0.00017809,2]
[403115351,1769171433113,-500.0,0.00017809,2]
[403115352,1769171433124,-500.0,0.00017809,2]
[403115353,1769171433134,-500.0,0.00017809,2]
[403115354,1769171433143,-231.0,0.00017809,2]
[403115355,1769171433155,-500.0,0.00017809,2]
[403115356,1769171433165,-500.0,0.00017809,2]
[403115357,1769171433174,-500.0,0.00017809,2]
[403115358,1769171433183,-500.0,0.00017809,2]
[403115359,1769171433193,-500.0,0.00017809,2]
[403115360,1769171433204,-150.0,0.00017809,2]
[403115361,1769171433214,-150.0,0.00017809,2]
[403115362,1769171433225,-150.0,0.00017809,2]
[403115363,1769171433234,-500.0,0.00017809,2]
[403115364,1769171433244,-255.68766,0.0001782,2]
[403115365,1769171433253,-255.68765,0.0001782,2]
[403115366,1769171433262,-168.99780451,0.00017824,2]
[403115367,1769171433271,-298.13215911,0.00017824,2]
[403115368,1769171433280,-445.98787991,0.00017824,2]
[403115369,1769171433289,-603.4347,0.00017824,2]
[403115370,1769171433298,-181.96376164,0.00017825,2]
[403115371,1769171433307,-150.0,0.00017825,2]
[403115372,1769171433316,-201.7333692,0.00017825,2]
[403115373,1769171433327,-200.0,0.00017856,2]
[403115374,1769171433335,-250.0,0.00017863,2]
[403115375,1769171433344,-150.0,0.00017863,2]
[403115376,1769171433355,-500.0,0.00017863,2]
[403115377,1769171433364,-500.0,0.00017863,2]
[403115378,1769171433375,-500.0,0.00017863,2]
[403115379,1769171433384,-431.75966422,0.00017863,2]
[403115380,1769171433394,-204.35873295,0.00017863,2]
[403115381,1769171433403,-500.0,0.00017863,2]
[403115382,1769171433412,-500.0,0.00017863,2]
[403115383,1769171433421,-500.0,0.00017863,2]
[403115384,1769171433430,-500.0,0.00017863,2]
[403115385,1769171433439,-150.0,0.00017863,2]
[403115386,1769171433448,-150.0,0.00017863,2]
[403115387,1769171433457,-150.0,0.00017863,2]
[403115388,1769171433466,-465.20236035,0.00017863,2]
[403115389,1769171433475,-500.0,0.00017873,2]
[403115390,1769171433484,-218.70829543,0.00017873,2]
[403115391,1769171433493,-150.0,0.00017879,2]
[403115392,1769171433502,-7996.74586111,0.000179,3]
[403115393,1769171433512,-6878.5626,0.000179,2]
[403115394,1769171433521,-3018.70400545,0.000179,2]
[403115395,1769171433530,-1483.90093433,0.000179,2]
[403115396,1769171433539,-1051.16561968,0.000179,2]
[403115397,1769171433550,-218.70829543,0.000179,2]
[403115398,1769171433559,-178.15838456,0.000179,2]
[403115399,1769171433573,-1029.03849237,0.000179,2]
[403115400,1769171433582,-150.0,0.00017918,2]
[403115401,1769171433592,-500.0,0.00017918,2]
[403115402,1769171433601,-500.0,0.00017918,2]
[403115403,1769171433611,-500.0,0.00017918,2]
[403115404,1769171433621,-500.0,0.00017918,2]
[403115405,1769171433630,-500.0,0.00017918,2]
[403115406,1769171433639,-478.20769391,0.00017918,2]
[403115407,1769171433648,-150.0,0.00017918,2]
[403115408,1769171433658,-258.93525549,0.00017918,2]
[403115409,1769171433667,-150.0,0.00017918,2]
[403115410,1769171433676,-150.0,0.00017918,2]
[403115411,1769171433685,-200.0,0.00017934,2]
[403115412,1769171433695,-150.0,0.00017972,2]
[403115413,1769171433704,-296.57839563,0.00017973,2]
[403115414,1769171433714,-500.0,0.00017973,2]
[403115415,1769171433723,-500.0,0.00017973,2]
[403115416,1769171433742,-500.0,0.00017973,2]
[403115417,1769171433752,-500.0,0.00017973,2]
[403115418,1769171433762,-250.0,0.00017973,2]
[403115419,1769171433771,-250.0,0.00017973,2]
[403115420,1769171433780,-150.0,0.00017973,2]
[403115421,1769171433789,-150.0,0.00017973,2]
[403115422,1769171433799,-211.95522837,0.0001799,2]
[403115423,1769171433808,-211.95522837,0.0001799,2]
[403115424,1769171433817,-852.483453,0.00017999,2]
[403115425,1769171433827,-14864.9417765,0.00017999,2]
[403115426,1769171433836,-1656.3654185,0.00017999,2]
[403115427,1769171433845,-3146.0,0.00018,2]
[403115428,1769171433854,-931922.10736278,0.00018,2]
[403115439,1769171438013,-999.0,0.00018,2]
[403115440,1769171438071,-1800.0,0.00018,2]
[403115441,1769171438133,-3367.06848212,0.00018,2]
[403115447,1769171440041,-6547747.16901942,0.00018,2]
[403115455,1769171444888,-13608.02779183,0.00018,2]
[403115457,1769171444925,-1186.20497327,0.00018,2]
[403115458,1769171444937,-421608.14884163,0.00018,2]
[403115459,1769171444950,-4768.759158,0.00018,2]
[403115471,1769171445910,-5922.0,0.00018,2]
[403115473,1769171445921,-2500.83297239,0.00018,2]
[403115477,1769171445950,-900.46,0.00018,2]
[403115480,1769171445960,-307.48421534,0.00018,2]
[403115492,1769171446166,-265.47445603,0.00018,2]
[403115493,1769171446222,-676.87939562,0.00018,2]
[403115498,1769171468750,3338.3648,0.00014539,2]
[403115505,1769171544847,10000.01,0.00014539,2]
[403115506,1769171544876,10000.01,0.00014539,2]
[403115507,1769171544901,10000.01,0.00014539,2]
[403115508,1769171544925,10000.01,0.00014539,2]
[403115509,1769171544950,10000.01,0.00014539,2]
[403115510,1769171544976,10000.01,0.00014539,2]
[403115511,1769171545003,10000.01,0.00014539,2]
[403115512,1769171545028,10000.01,0.00014539,2]
[403115513,1769171545053,10000.01,0.00014539,2]
[403115514,1769171545080,10000.01,0.00014539,2]
[403115521,1769171593983,300.0,0.00014538,2]
[403115527,1769171636234,513.27109547,0.00014538,2]
[403115528,1769171637757,500.0,0.00014538,2]
[403115529,1769171637806,500.0,0.00014538,2]
[403115530,1769171637849,500.0,0.00014538,2]
[403115531,1769171637885,500.0,0.00014538,2]
[403115532,1769171637925,500.0,0.00014538,2]
[403115533,1769171637971,500.0,0.00014538,2]
[403115534,1769171638008,181.84420006,0.00014538,2]
[403115535,1769171638056,500.0,0.00014538,2]
[403115536,1769171638102,500.0,0.00014538,2]
[403115537,1769171638138,500.0,0.00014538,2]
[403115684,1769171701289,1200.0,0.00014538,2]
[403115685,1769171739244,-200.0,0.00014539,2]
[403115686,1769171739325,-151.30607054,0.00014539,2]
[403115687,1769171740630,1044.83522486,0.00014538,2]
[403115701,1769171835974,662.81970741,0.000176,30]
[403115702,1769171844651,500.0,0.00014538,2]
[403115703,1769171844707,500.0,0.00014538,2]
[403115704,1769171857433,500.0,0.00014538,2]
[403115705,1769171885909,500.0,0.00014538,2]
[403115707,1769171938194,603.20404676,0.00014538,2]
[403115712,1769171961475,500.0,0.00014538,2]
[403115713,1769171993251,500.0,0.00014538,2]
[403115714,1769172020320,500.0,0.00014538,2]
[403115715,1769172052354,500.0,0.00014538,2]
[403115716,1769172084526,500.0,0.00014538,2]
[403115717,1769172092662,1018.66,0.00014248,2]
[403115718,1769172092704,175.037,0.00014248,2]
[403115720,1769172116333,500.0,0.00014538,2]
[403115721,1769172169327,652.698843,0.00014465,2]
[403115723,1769172250969,305.57488538,0.00014439,2]
[403115724,1769172250993,634.77681694,0.00014439,2]
[403115725,1769172259312,3000.0,0.00014539,2]
[403115731,1769172434099,5478.43,0.00013674,2]
[403115737,1769172545370,159.44001106,0.00014439,2]
[403115738,1769172557578,727.363172,0.00014439,2]
[403115739,1769172557604,10000.01,0.00014439,2]
[403115740,1769172557629,10000.01,0.00014439,2]
[403115741,1769172557655,10000.01,0.00014439,2]
[403115742,1769172557682,10000.01,0.00014439,2]
[403115743,1769172557712,10000.01,0.00014439,2]
[403115744,1769172557738,10000.01,0.00014439,2]
[403115745,1769172557763,10000.01,0.00014439,2]
[403115746,1769172557788,10000.01,0.00014439,2]
[403115747,1769172557814,10000.01,0.00014439,2]
[403115754,1769172573874,-5325.801474,0.00014439,2]
[403115763,1769172631938,-547.77308168,0.00014439,2]
[403115764,1769172631992,-903398.97227232,0.00014439,2]
[403115765,1769172632002,-233.43575157,0.00014539,2]
[403115766,1769172632015,-502.45286681,0.00014638,2]
[403115767,1769172632026,-940.3517023,0.00015208,2]
[403115768,1769172632035,-940.3517023,0.00015593,2]
[403115769,1769172632044,-159.44001104,0.00015593,2]
[403115770,1769172632053,-166.66,0.00015742,2]
[403115771,1769172632062,-940.3517023,0.00015977,2]
[403115772,1769172632071,-500.0,0.00015992,2]
[403115773,1769172632080,-258.53356848,0.00015992,2]
[403115774,1769172632090,-719.68964661,0.00015992,2]
[403115775,1769172632099,-195.0,0.00015992,2]
[403115776,1769172632108,-166.66,0.00016074,2]
[403115777,1769172632118,-326.25341668,0.00016356,2]
[403115778,1769172632127,-500.0,0.00016356,2]
[403115779,1769172632136,-940.3517023,0.00016362,2]
[403115780,1769172632145,-159.7,0.00016385,2]
[403115781,1769172632154,-166.66,0.00016405,2]
[403115782,1769172632163,-299.46,0.0001661,2]
[403115783,1769172632172,-836.0,0.0001672,2]
[403115784,1769172632181,-166.66,0.00016736,2]
[403115785,1769172632190,-940.3517023,0.00016746,2]
[403115786,1769172632199,-159.44001104,0.00016746,2]
[403115787,1769172632208,-1000.0,0.00016849,2]
[403115788,1769172632217,-1516.97,0.00016884,2]
[403115789,1769172632226,-831.0,0.0001704,2]
[403115790,1769172632234,-169.35,0.00017044,2]
[403115791,1769172632244,-166.66,0.00017068,2]
[403115792,1769172632253,-162.98,0.00017099,2]
[403115793,1769172632262,-854.2589148,0.00017099,2]
[403115795,1769172632271,-151.0,0.00017099,2]
[403115797,1769172632280,-151.0,0.00017099,2]
[403115799,1769172632290,-151.0,0.00017099,2]
[403115801,1769172632298,-151.0,0.00017099,2]
[403115803,1769172632307,-151.0,0.00017099,2]
[403115805,1769172632316,-151.0,0.00017099,2]
[403115807,1769172632326,-151.0,0.00017099,2]
[403115809,1769172632335,-151.0,0.00017099,2]
[403115811,1769172632344,-151.0,0.00017099,2]
[403115813,1769172632353,-151.0,0.00017099,2]
[403115815,1769172632362,-151.0,0.00017099,2]
[403115817,1769172632371,-940.3517023,0.00017131,2]
[403115819,1769172632381,-162.99,0.00017373,2]
[403115821,1769172632390,-166.66,0.00017399,2]
[403115823,1769172632399,-940.3517023,0.00017515,2]
[403115825,1769172632409,-162.75909183,0.00017647,2]
[403115826,1769172632418,-150.0,0.00017699,2]
[403115828,1769172632427,-500.0,0.00017699,2]
[403115830,1769172632437,-150.0,0.00017699,2]
[403115832,1769172632446,-9999.99,0.00017728,2]
[403115834,1769172632455,-150.99,0.00017728,2]
[403115836,1769172632464,-9999.99,0.00017728,2]
[403115838,1769172632473,-9999.99,0.00017728,2]
[403115840,1769172632486,-999.99,0.00017728,2]
[403115842,1769172632505,-150.99,0.00017728,2]
[403115844,1769172632515,-3449.14,0.00017728,2]
[403115846,1769172632524,-57822.37,0.00017728,2]
[403115848,1769172632533,-150.0,0.00017754,2]
[403115850,1769172632542,-500.0,0.00017754,2]
[403115852,1769172632552,-150.0,0.00017754,2]
[403115854,1769172632561,-2832.6,0.00017779,2]
[403115856,1769172632570,-150.0,0.00017809,2]
[403115858,1769172632580,-500.0,0.00017809,2]
[403115860,1769172632589,-150.0,0.00017809,2]
[403115861,1769172632599,-1118.07107,0.0001782,2]
[403115863,1769172632609,-1118.07107,0.0001782,2]
[403115865,1769172632618,-200.0,0.00017856,2]
[403115868,1769172632628,-500.0,0.00017863,2]
[403115870,1769172632638,-150.0,0.00017863,2]
[403115871,1769172632647,-940.3517023,0.000179,2]
[403115873,1769172632657,-159.44001104,0.000179,2]
[403115875,1769172632666,-4474.6660817,0.000179,2]
[403115877,1769172632675,-2509.0,0.000179,2]
[403115879,1769172632684,-500.0,0.00017918,2]
[403115881,1769172632693,-150.0,0.00017918,2]
[403115883,1769172632703,-151.0,0.00017945,2]
[403115885,1769172632712,-151.0,0.00017945,2]
[403115887,1769172632721,-500.0,0.00017973,2]
[403115889,1769172632730,-248.60675673,0.00017973,2]
[403115891,1769172632739,-150.0,0.00017973,2]
[403115893,1769172632749,-150.0,0.00017973,2]
[403115895,1769172632758,-505.55599845,0.00017982,2]
[403115897,1769172632767,-155.775,0.00017999,2]
[403115898,1769172632777,-696738.94919749,0.00018,2]
[403115902,1769172632796,-13043.87880772,0.00018,2]
[403115904,1769172632815,-731.38855193,0.00018,2]
[403116019,1769172633907,500.0,0.00014438,2]
[403116025,1769172633959,258.27314968,0.00014438,2]
[403116032,1769172634005,365.47593172,0.00014438,2]
[403116051,1769172634176,209.0156606,0.00014438,2]
[403116063,1769172638111,-150.0,0.00017699,2]
[403116064,1769172638124,-150.0,0.00017754,2]
[403116065,1769172638135,-150.0,0.00017809,2]
[403116066,1769172638147,-229.70873426,0.00017973,2]
[403116067,1769172638158,-2925.92620425,0.00018,2]
[403116068,1769172638265,-150.0,0.00017863,2]
[403116069,1769172638277,-208.3738,0.00018,2]
[403116086,1769172640118,-150.0,0.00017918,2]
[403116087,1769172640130,-179.913084,0.00017973,2]
[403116088,1769172640142,-540.38983598,0.00018,2]
[403116089,1769172640157,-7089.32551755,0.00018,2]
[403116090,1769172640178,-534.0,0.00018,2]
[403116091,1769172640191,-653.76080498,0.00018,2]
[403116092,1769172640205,-21041.45799257,0.00018,2]
[403116093,1769172640219,-4348.12435315,0.00018,2]
[403116094,1769172640241,-422.28753396,0.00018,2]
[403116095,1769172640338,-570.39513047,0.00018,2]
[403116096,1769172640501,-244787.71621439,0.00018,2]
[403116097,1769172640515,-173207.02685951,0.00018,2]
[403116098,1769172640530,-2280.9972858,0.00018,2]
[403116099,1769172640544,-1956.161805,0.00018,2]
[403116108,1769172643321,-1361.07983159,0.00018,2]
[403116111,1769172646160,-484.0252033,0.00017808,2]
[403116112,1769172646172,-515.9747967,0.00017808,2]
[403116113,1769172646184,-12852.13941813,0.00018,2]
[403116114,1769172646210,-368.00487508,0.00018,2]
[403116115,1769172646267,-974.46124942,0.00018,2]
[403116122,1769172668720,553.5491068,0.00014438,2]
[403116123,1769172701455,5533.0,0.000133,5]
[403116124,1769172702087,2446.22858022,0.000132,3]
[403116125,1769172702117,464.77141978,0.000132,3]
[403116126,1769172710026,10000.01,0.00014439,2]
[403116127,1769172710051,10000.01,0.00014439,2]
[403116128,1769172710080,10000.01,0.00014439,2]
[403116129,1769172710105,10000.01,0.00014439,2]
[403116130,1769172710131,10000.01,0.00014439,2]
[403116131,1769172710159,10000.01,0.00014439,2]
[403116132,1769172710186,10000.01,0.00014439,2]
[403116133,1769172710216,10000.01,0.00014439,2]